[Event "January 9 Early 2024"]
[Site "https://www.chess.com"]
[Date "2024.01.11"]
[Round "4"]
[White "Donchenko, Alexander"]
[Black "Vlassov, Nikolai"]
[Result "1/2-1/2"]
[Board "261"]
[TimeControl "180+1"]
[WhiteFideId "24603295"]
[BlackFideId "4103360"]
[WhiteElo "2939"]
[BlackElo "2650"]
[WhiteTeam "GER"]
[BlackTeam "FID"]
[WhiteClock "0:00:07"]
[BlackClock "0:00:21"]

1. Nf3 {[%clk 0:03:00]}  c5 {[%clk 0:02:58]} 2. c4 {[%clk 0:03:00]}  g6 {[%clk 0:02:58]} 3. d4 {[%clk 0:03:00]}  Bg7 {[%clk 0:02:58]} 4. e4 {[%clk 0:02:58]}  Qa5+ {[%clk 0:02:58]} 5. Bd2 {[%clk 0:02:54]}  Qb6 {[%clk 0:02:57]} 6. Bc3 {[%clk 0:02:54]}  Nc6 {[%clk 0:02:54]} 7. dxc5 {[%clk 0:02:38]}  Bxc3+ {[%clk 0:02:53]} 8. Nxc3 {[%clk 0:02:39]}  Qxb2 {[%clk 0:02:53]} 9. Qc1 {[%clk 0:02:39]}  Qxc1+ {[%clk 0:02:40]} 10. Rxc1 {[%clk 0:02:40]}  Nf6 {[%clk 0:02:19]} 11. Nd5 {[%clk 0:02:36]}  Kd8 {[%clk 0:02:10]} 12. Nxf6 {[%clk 0:02:35]}  exf6 {[%clk 0:02:10]} 13. Bd3 {[%clk 0:02:36]}  b6 {[%clk 0:02:07]} 14. cxb6 {[%clk 0:02:30]}  axb6 {[%clk 0:02:08]} 15. Bb1 {[%clk 0:02:30]}  Ra4 {[%clk 0:02:02]} 16. O-O {[%clk 0:02:25]}  Ba6 {[%clk 0:01:59]} 17. Nd2 {[%clk 0:02:24]}  Na5 {[%clk 0:01:53]} 18. Rfd1 {[%clk 0:02:19]}  Bxc4 {[%clk 0:01:45]} 19. Bc2 {[%clk 0:02:13]}  Rb4 {[%clk 0:01:20]} 20. a3 {[%clk 0:02:11]}  Rb2 {[%clk 0:01:20]} 21. Nxc4 {[%clk 0:02:08]}  Nxc4 {[%clk 0:01:20]} 22. Ba4 {[%clk 0:02:09]}  b5 {[%clk 0:01:19]} 23. Bxb5 {[%clk 0:02:06]}  Rxb5 {[%clk 0:01:18]} 24. Rxc4 {[%clk 0:02:06]}  Ke7 {[%clk 0:01:18]} 25. Kf1 {[%clk 0:01:48]}  f5 {[%clk 0:01:14]} 26. Rcd4 {[%clk 0:01:39]}  Rd8 {[%clk 0:01:11]} 27. a4 {[%clk 0:01:39]}  Ra5 {[%clk 0:01:10]} 28. exf5 {[%clk 0:01:28]}  Rxf5 {[%clk 0:01:09]} 29. Ke2 {[%clk 0:01:29]}  Ra5 {[%clk 0:01:08]} 30. Kd3 {[%clk 0:01:20]}  Rda8 {[%clk 0:01:05]} 31. Re1+ {[%clk 0:01:16]}  Kf6 {[%clk 0:00:59]} 32. Ra1 {[%clk 0:01:11]}  d5 {[%clk 0:00:58]} 33. Kc3 {[%clk 0:01:10]}  Rb8 {[%clk 0:00:54]} 34. Rb4 {[%clk 0:01:08]}  Rc8+ {[%clk 0:00:45]} 35. Kb3 {[%clk 0:01:02]}  Rcc5 {[%clk 0:00:38]} 36. Re1 {[%clk 0:00:55]}  h5 {[%clk 0:00:37]} 37. Re3 {[%clk 0:00:51]}  g5 {[%clk 0:00:35]} 38. Rf3+ {[%clk 0:00:48]}  Kg6 {[%clk 0:00:33]} 39. Rb6+ {[%clk 0:00:48]}  Kg7 {[%clk 0:00:33]} 40. Rb7 {[%clk 0:00:48]}  g4 {[%clk 0:00:26]} 41. Rfxf7+ {[%clk 0:00:45]}  Kg6 {[%clk 0:00:27]} 42. Rfc7 {[%clk 0:00:13]}  d4 {[%clk 0:00:23]} 43. Rxc5 {[%clk 0:00:11]}  Rxc5 {[%clk 0:00:23]} 44. Rd7 {[%clk 0:00:12]}  Rc3+ {[%clk 0:00:22]} 45. Kb4 {[%clk 0:00:13]}  Rc2 {[%clk 0:00:22]} 46. Rxd4 {[%clk 0:00:11]}  Rxf2 {[%clk 0:00:22]} 47. g3 {[%clk 0:00:03]}  Rxh2 {[%clk 0:00:22]} 48. a5 {[%clk 0:00:03]}  Rg2 {[%clk 0:00:20]} 49. Rd3 {[%clk 0:00:04]}  h4 {[%clk 0:00:20]} 50. gxh4 {[%clk 0:00:03]}  Kh5 {[%clk 0:00:20]} 51. a6 {[%clk 0:00:03]}  Rb2+ {[%clk 0:00:18]} 52. Rb3 {[%clk 0:00:03]}  Ra2 {[%clk 0:00:18]} 53. Ra3 {[%clk 0:00:03]}  Rb2+ {[%clk 0:00:18]} 54. Kc5 {[%clk 0:00:02]}  Rb8 {[%clk 0:00:18]} 55. a7 {[%clk 0:00:02]}  Ra8 {[%clk 0:00:17]} 56. Kb6 {[%clk 0:00:02]}  Kxh4 {[%clk 0:00:18]} 57. Kb7 {[%clk 0:00:03]}  Rxa7+ {[%clk 0:00:18]} 58. Kxa7 {[%clk 0:00:04]}  g3 {[%clk 0:00:19]} 59. Kb6 {[%clk 0:00:05]}  g2 {[%clk 0:00:19]} 60. Ra1 {[%clk 0:00:05]}  Kg3 {[%clk 0:00:19]} 61. Kc5 {[%clk 0:00:05]}  Kf2 {[%clk 0:00:20]} 62. Kd4 {[%clk 0:00:06]}  g1=Q {[%clk 0:00:20]} 63. Rxg1 {[%clk 0:00:07]}  Kxg1 {[%clk 0:00:21]} 1/2-1/2

[Event "January 9 Early 2024"]
[Site "https://www.chess.com"]
[Date "2024.01.11"]
[Round "4"]
[White "Zhigalko, Sergei"]
[Black "Nakamura, Hikaru"]
[Result "0-1"]
[Board "263"]
[TimeControl "180+1"]
[WhiteFideId "13502956"]
[BlackFideId "2016192"]
[WhiteElo "2918"]
[BlackElo "3264"]
[WhiteTeam "BLR"]
[BlackTeam "USA"]
[WhiteClock "0:00:02"]
[BlackClock "0:00:06"]

1. e4 {[%clk 0:03:00]}  c5 {[%clk 0:02:54]} 2. c3 {[%clk 0:03:01]}  g6 {[%clk 0:02:53]} 3. d4 {[%clk 0:03:01]}  cxd4 {[%clk 0:02:51]} 4. cxd4 {[%clk 0:03:02]}  d5 {[%clk 0:02:52]} 5. e5 {[%clk 0:03:02]}  a6 {[%clk 0:02:51]} 6. Nf3 {[%clk 0:03:01]}  Nc6 {[%clk 0:02:49]} 7. h3 {[%clk 0:02:56]}  f6 {[%clk 0:02:47]} 8. Nc3 {[%clk 0:02:48]}  e6 {[%clk 0:02:38]} 9. Bd3 {[%clk 0:02:16]}  fxe5 {[%clk 0:02:32]} 10. Nxe5 {[%clk 0:02:14]}  Nxe5 {[%clk 0:02:27]} 11. dxe5 {[%clk 0:02:14]}  Bg7 {[%clk 0:02:28]} 12. O-O {[%clk 0:02:03]}  Ne7 {[%clk 0:02:27]} 13. Bg5 {[%clk 0:01:25]}  O-O {[%clk 0:02:25]} 14. Qe2 {[%clk 0:01:14]}  Bd7 {[%clk 0:02:14]} 15. Kh1 {[%clk 0:01:05]}  Bc6 {[%clk 0:02:03]} 16. Rae1 {[%clk 0:00:54]}  Qc7 {[%clk 0:01:48]} 17. Bxe7 {[%clk 0:00:39]}  Qxe7 {[%clk 0:01:48]} 18. Qg4 {[%clk 0:00:39]}  Rf7 {[%clk 0:01:34]} 19. Ne2 {[%clk 0:00:34]}  Bxe5 {[%clk 0:01:31]} 20. Nd4 {[%clk 0:00:28]}  Bxd4 {[%clk 0:00:54]} 21. Qxd4 {[%clk 0:00:29]}  Raf8 {[%clk 0:00:54]} 22. f3 {[%clk 0:00:24]}  Qd6 {[%clk 0:00:45]} 23. Re5 {[%clk 0:00:16]}  Bd7 {[%clk 0:00:30]} 24. Rfe1 {[%clk 0:00:15]}  Rc8 {[%clk 0:00:29]} 25. Qg4 {[%clk 0:00:15]}  Qb6 {[%clk 0:00:25]} 26. b3 {[%clk 0:00:07]}  Rc3 {[%clk 0:00:22]} 27. Bxg6 {[%clk 0:00:07]}  hxg6 {[%clk 0:00:22]} 28. Rg5 {[%clk 0:00:08]}  Kf8 {[%clk 0:00:11]} 29. Rxg6 {[%clk 0:00:08]}  Ke7 {[%clk 0:00:09]} 30. Qg5+ {[%clk 0:00:08]}  Ke8 {[%clk 0:00:09]} 31. Rg8+ {[%clk 0:00:08]}  Rf8 {[%clk 0:00:09]} 32. Qg6+ {[%clk 0:00:08]}  Ke7 {[%clk 0:00:10]} 33. Rxf8 {[%clk 0:00:08]}  Kxf8 {[%clk 0:00:10]} 34. Qf6+ {[%clk 0:00:09]}  Ke8 {[%clk 0:00:11]} 35. Qxc3 {[%clk 0:00:10]}  Qf2 {[%clk 0:00:11]} 36. Qe5 {[%clk 0:00:07]}  d4 {[%clk 0:00:10]} 37. Rd1 {[%clk 0:00:04]}  d3 {[%clk 0:00:11]} 38. Qe4 {[%clk 0:00:04]}  Bb5 {[%clk 0:00:10]} 39. Qxe6+ {[%clk 0:00:03]}  Kd8 {[%clk 0:00:10]} 40. Re1 {[%clk 0:00:04]}  d2 {[%clk 0:00:09]} 41. Qe7+ {[%clk 0:00:03]}  Kc8 {[%clk 0:00:10]} 42. Qf8+ {[%clk 0:00:03]}  Kc7 {[%clk 0:00:10]} 43. Qf4+ {[%clk 0:00:03]}  Kc8 {[%clk 0:00:10]} 44. Qf8+ {[%clk 0:00:03]}  Kc7 {[%clk 0:00:10]} 45. Qf4+ {[%clk 0:00:04]}  Kb6 {[%clk 0:00:08]} 46. Re6+ {[%clk 0:00:04]}  Ka7 {[%clk 0:00:08]} 47. Rd6 {[%clk 0:00:03]}  Qe1+ {[%clk 0:00:08]} 48. Kh2 {[%clk 0:00:03]}  d1=Q {[%clk 0:00:09]} 49. Rxd1 {[%clk 0:00:03]}  Qxd1 {[%clk 0:00:10]} 50. Qe3+ {[%clk 0:00:02]}  Kb8 {[%clk 0:00:10]} 51. Qf4+ {[%clk 0:00:02]}  Kc8 {[%clk 0:00:10]} 52. h4 {[%clk 0:00:02]}  Qd5 {[%clk 0:00:09]} 53. Qg4+ {[%clk 0:00:01]}  Bd7 {[%clk 0:00:09]} 54. Qg7 {[%clk 0:00:01]}  Qd6+ {[%clk 0:00:09]} 55. Qg3 {[%clk 0:00:02]}  Qh6 {[%clk 0:00:06]} 0-1

[Event "January 9 Early 2024"]
[Site "https://www.chess.com"]
[Date "2024.01.11"]
[Round "4"]
[White "Herman, Matthew"]
[Black "Agrest, Inna"]
[Result "1/2-1/2"]
[Board "264"]
[TimeControl "180+1"]
[WhiteFideId "2028964"]
[BlackFideId "1708830"]
[WhiteElo "2516"]
[BlackElo "2356"]
[WhiteTeam "USA"]
[BlackTeam "SWE"]
[WhiteClock "0:00:08"]
[BlackClock "0:00:03"]

1. e4 {[%clk 0:02:58]}  e5 {[%clk 0:02:59]} 2. Nf3 {[%clk 0:02:58]}  Nc6 {[%clk 0:02:59]} 3. Bc4 {[%clk 0:02:58]}  Nf6 {[%clk 0:02:59]} 4. d3 {[%clk 0:02:59]}  h6 {[%clk 0:03:00]} 5. a4 {[%clk 0:02:57]}  d6 {[%clk 0:02:59]} 6. a5 {[%clk 0:02:57]}  g5 {[%clk 0:02:55]} 7. O-O {[%clk 0:02:52]}  Bg7 {[%clk 0:02:55]} 8. c3 {[%clk 0:02:49]}  O-O {[%clk 0:02:54]} 9. a6 {[%clk 0:02:46]}  Ne7 {[%clk 0:02:38]} 10. axb7 {[%clk 0:02:23]}  Bxb7 {[%clk 0:02:37]} 11. Nbd2 {[%clk 0:02:24]}  Ng6 {[%clk 0:02:36]} 12. Ne1 {[%clk 0:02:13]}  c6 {[%clk 0:02:14]} 13. Nc2 {[%clk 0:01:59]}  d5 {[%clk 0:02:09]} 14. Ba6 {[%clk 0:01:53]}  Bxa6 {[%clk 0:02:02]} 15. Rxa6 {[%clk 0:01:54]}  Nf4 {[%clk 0:01:38]} 16. Qf3 {[%clk 0:00:33]}  Qc8 {[%clk 0:01:20]} 17. Ra4 {[%clk 0:00:27]}  Rd8 {[%clk 0:01:09]} 18. Nb4 {[%clk 0:00:16]}  a5 {[%clk 0:00:59]} 19. Nc2 {[%clk 0:00:07]}  dxe4 {[%clk 0:00:21]} 20. dxe4 {[%clk 0:00:08]}  Rd3 {[%clk 0:00:15]} 21. Ne3 {[%clk 0:00:08]}  g4 {[%clk 0:00:15]} 22. Qd1 {[%clk 0:00:07]}  h5 {[%clk 0:00:14]} 23. Qc2 {[%clk 0:00:07]}  Qd7 {[%clk 0:00:15]} 24. Nf5 {[%clk 0:00:07]}  Rd8 {[%clk 0:00:14]} 25. Nxg7 {[%clk 0:00:03]}  Kxg7 {[%clk 0:00:15]} 26. Nc4 {[%clk 0:00:03]}  Qe6 {[%clk 0:00:14]} 27. Ne3 {[%clk 0:00:03]}  Kg8 {[%clk 0:00:12]} 28. Ra1 {[%clk 0:00:03]}  Nxe4 {[%clk 0:00:12]} 29. g3 {[%clk 0:00:02]}  Nh3+ {[%clk 0:00:12]} 30. Kg2 {[%clk 0:00:03]}  Nhg5 {[%clk 0:00:12]} 31. b3 {[%clk 0:00:02]}  Nf3 {[%clk 0:00:12]} 32. Bb2 {[%clk 0:00:02]}  Rd2 {[%clk 0:00:12]} 33. Qb1 {[%clk 0:00:03]}  R8d3 {[%clk 0:00:10]} 34. Ra4 {[%clk 0:00:02]}  Nxc3 {[%clk 0:00:09]} 35. Bxc3 {[%clk 0:00:03]}  Rxc3 {[%clk 0:00:10]} 36. Qe4 {[%clk 0:00:03]}  Rxb3 {[%clk 0:00:10]} 37. Nf5 {[%clk 0:00:04]}  Rbb2 {[%clk 0:00:09]} 38. Rc4 {[%clk 0:00:03]}  Nd4 {[%clk 0:00:08]} 39. Nxd4 {[%clk 0:00:02]}  exd4 {[%clk 0:00:09]} 40. Rxd4 {[%clk 0:00:03]}  Qxe4+ {[%clk 0:00:08]} 41. Rxe4 {[%clk 0:00:04]}  c5 {[%clk 0:00:07]} 42. Re5 {[%clk 0:00:04]}  c4 {[%clk 0:00:07]} 43. Rxa5 {[%clk 0:00:04]}  c3 {[%clk 0:00:07]} 44. Rc5 {[%clk 0:00:04]}  c2 {[%clk 0:00:08]} 45. Rc1 {[%clk 0:00:04]}  Kg7 {[%clk 0:00:03]} 46. h3 {[%clk 0:00:05]}  gxh3+ {[%clk 0:00:03]} 47. Kxh3 {[%clk 0:00:05]}  Rxf2 {[%clk 0:00:03]} 48. Rxh5 {[%clk 0:00:05]}  Kg6 {[%clk 0:00:03]} 49. Rc5 {[%clk 0:00:06]}  Rd2 {[%clk 0:00:03]} 50. Rc4 {[%clk 0:00:06]}  Re2 {[%clk 0:00:03]} 51. Kg4 {[%clk 0:00:06]}  f5+ {[%clk 0:00:03]} 52. Kf3 {[%clk 0:00:06]}  Rh2 {[%clk 0:00:03]} 53. Rc6+ {[%clk 0:00:06]}  Kg5 {[%clk 0:00:04]} 54. Rc5 {[%clk 0:00:07]}  Rd2 {[%clk 0:00:04]} 55. Ke3 {[%clk 0:00:06]}  Rg2 {[%clk 0:00:04]} 56. Kf3 {[%clk 0:00:07]}  Rh2 {[%clk 0:00:04]} 57. Rc3 {[%clk 0:00:07]}  Rd2 {[%clk 0:00:04]} 58. Ke3 {[%clk 0:00:07]}  Rh2 {[%clk 0:00:04]} 59. Kf3 {[%clk 0:00:08]}  Rd2 {[%clk 0:00:03]} 60. Ke3 {[%clk 0:00:07]}  Rh2 {[%clk 0:00:03]} 61. Kf3 {[%clk 0:00:08]} 1/2-1/2

[Event "January 9 Early 2024"]
[Site "https://www.chess.com"]
[Date "2024.01.11"]
[Round "4"]
[White "Kvaloy, Aksel Bu"]
[Black "Matlakov, Maxim"]
[Result "1-0"]
[Board "267"]
[TimeControl "180+1"]
[WhiteFideId "1528815"]
[BlackFideId "4168003"]
[WhiteElo "2745"]
[BlackElo "2935"]
[WhiteTeam "NOR"]
[BlackTeam "RUS"]
[WhiteClock "0:00:07"]
[BlackClock "0:00:04"]

1. d4 {[%clk 0:03:00]}  d5 {[%clk 0:02:58]} 2. Nf3 {[%clk 0:03:00]}  Nf6 {[%clk 0:02:58]} 3. Bf4 {[%clk 0:02:58]}  Bf5 {[%clk 0:02:57]} 4. e3 {[%clk 0:02:57]}  e6 {[%clk 0:02:57]} 5. Nbd2 {[%clk 0:02:58]}  Bd6 {[%clk 0:02:50]} 6. Ne5 {[%clk 0:02:55]}  h6 {[%clk 0:02:36]} 7. Be2 {[%clk 0:02:49]}  Nbd7 {[%clk 0:02:34]} 8. g4 {[%clk 0:02:49]}  Bh7 {[%clk 0:02:33]} 9. h4 {[%clk 0:02:48]}  Ne4 {[%clk 0:02:32]} 10. Nxe4 {[%clk 0:02:43]}  Bxe4 {[%clk 0:02:31]} 11. f3 {[%clk 0:02:43]}  Bxe5 {[%clk 0:02:27]} 12. Bxe5 {[%clk 0:02:31]}  Nxe5 {[%clk 0:02:26]} 13. fxe4 {[%clk 0:02:30]}  Nd7 {[%clk 0:02:20]} 14. e5 {[%clk 0:02:29]}  c5 {[%clk 0:02:18]} 15. c3 {[%clk 0:02:29]}  a6 {[%clk 0:02:15]} 16. Qc2 {[%clk 0:02:25]}  Rc8 {[%clk 0:02:14]} 17. Kd2 {[%clk 0:02:19]}  b5 {[%clk 0:02:14]} 18. Raf1 {[%clk 0:02:16]}  Qb6 {[%clk 0:02:04]} 19. a3 {[%clk 0:01:53]}  a5 {[%clk 0:01:47]} 20. g5 {[%clk 0:01:50]}  b4 {[%clk 0:01:41]} 21. g6 {[%clk 0:01:44]}  f5 {[%clk 0:01:34]} 22. Rf4 {[%clk 0:01:15]}  cxd4 {[%clk 0:01:22]} 23. exd4 {[%clk 0:01:13]}  O-O {[%clk 0:01:21]} 24. Rb1 {[%clk 0:01:02]}  Rc7 {[%clk 0:01:18]} 25. Rf3 {[%clk 0:01:01]}  Rb8 {[%clk 0:01:17]} 26. Rff1 {[%clk 0:00:45]}  Rbc8 {[%clk 0:01:15]} 27. Rf3 {[%clk 0:00:45]}  Qxd4+ {[%clk 0:01:05]} 28. cxd4 {[%clk 0:00:43]}  Rxc2+ {[%clk 0:01:04]} 29. Kd1 {[%clk 0:00:43]}  Nb6 {[%clk 0:01:02]} 30. axb4 {[%clk 0:00:41]}  axb4 {[%clk 0:01:01]} 31. Rb3 {[%clk 0:00:42]}  R2c7 {[%clk 0:00:27]} 32. Rxb4 {[%clk 0:00:41]}  Nc4 {[%clk 0:00:28]} 33. Bxc4 {[%clk 0:00:21]}  Rxc4 {[%clk 0:00:28]} 34. Rxc4 {[%clk 0:00:22]}  Rxc4 {[%clk 0:00:28]} 35. b4 {[%clk 0:00:21]}  Kf8 {[%clk 0:00:16]} 36. Ke2 {[%clk 0:00:19]}  Ke7 {[%clk 0:00:13]} 37. b5 {[%clk 0:00:18]}  Kd8 {[%clk 0:00:11]} 38. Kd3 {[%clk 0:00:18]}  Kc7 {[%clk 0:00:11]} 39. Ra1 {[%clk 0:00:17]}  Kb6 {[%clk 0:00:05]} 40. Ra6+ {[%clk 0:00:17]}  Kxb5 {[%clk 0:00:05]} 41. Rxe6 {[%clk 0:00:17]}  Rc1 {[%clk 0:00:06]} 42. Rd6 {[%clk 0:00:09]}  Rh1 {[%clk 0:00:03]} 43. Rxd5+ {[%clk 0:00:09]}  Kc6 {[%clk 0:00:03]} 44. Rd6+ {[%clk 0:00:09]}  Kc7 {[%clk 0:00:04]} 45. Ra6 {[%clk 0:00:09]}  Rxh4 {[%clk 0:00:02]} 46. Ra7+ {[%clk 0:00:09]}  Kd8 {[%clk 0:00:02]} 47. Rxg7 {[%clk 0:00:10]}  Rh3+ {[%clk 0:00:03]} 48. Kc4 {[%clk 0:00:10]}  Rg3 {[%clk 0:00:03]} 49. d5 {[%clk 0:00:09]}  f4 {[%clk 0:00:04]} 50. d6 {[%clk 0:00:08]}  f3 {[%clk 0:00:04]} 51. e6 {[%clk 0:00:09]}  Kc8 {[%clk 0:00:03]} 52. d7+ {[%clk 0:00:05]}  Kc7 {[%clk 0:00:03]} 53. Rg8 {[%clk 0:00:06]}  Rg4+ {[%clk 0:00:03]} 54. Kc5 {[%clk 0:00:05]}  Rg5+ {[%clk 0:00:04]} 55. Kc4 {[%clk 0:00:06]}  Rg4+ {[%clk 0:00:04]} 56. Kc3 {[%clk 0:00:07]} 1-0

[Event "January 9 Early 2024"]
[Site "https://www.chess.com"]
[Date "2024.01.11"]
[Round "4"]
[White "Pranesh M"]
[Black "Mirzoev, Azer"]
[Result "1-0"]
[Board "268"]
[TimeControl "180+1"]
[WhiteFideId "35028600"]
[BlackFideId "13400304"]
[WhiteElo "2942"]
[BlackElo "2631"]
[WhiteTeam "IND"]
[BlackTeam "AZE"]
[WhiteClock "0:00:06"]
[BlackClock "0:00:02"]

1. e4 {[%clk 0:02:55]}  e6 {[%clk 0:02:59]} 2. d3 {[%clk 0:02:54]}  d5 {[%clk 0:03:00]} 3. Nd2 {[%clk 0:02:55]}  Nc6 {[%clk 0:02:59]} 4. Ne2 {[%clk 0:02:54]}  Nf6 {[%clk 0:02:56]} 5. c3 {[%clk 0:02:48]}  a5 {[%clk 0:02:53]} 6. g3 {[%clk 0:02:45]}  dxe4 {[%clk 0:02:52]} 7. Nxe4 {[%clk 0:02:46]}  Nxe4 {[%clk 0:02:52]} 8. dxe4 {[%clk 0:02:47]}  Qxd1+ {[%clk 0:02:52]} 9. Kxd1 {[%clk 0:02:47]}  Bc5 {[%clk 0:02:53]} 10. f4 {[%clk 0:02:45]}  e5 {[%clk 0:02:52]} 11. f5 {[%clk 0:02:45]}  b6 {[%clk 0:02:51]} 12. Kc2 {[%clk 0:02:44]}  Bb7 {[%clk 0:02:50]} 13. Bg2 {[%clk 0:02:40]}  f6 {[%clk 0:02:40]} 14. Bd2 {[%clk 0:02:39]}  O-O-O {[%clk 0:02:35]} 15. a4 {[%clk 0:02:36]}  Rd7 {[%clk 0:02:27]} 16. Rad1 {[%clk 0:02:24]}  Rhd8 {[%clk 0:02:22]} 17. Nc1 {[%clk 0:02:05]}  Ne7 {[%clk 0:02:16]} 18. g4 {[%clk 0:01:51]}  Bc6 {[%clk 0:02:11]} 19. b3 {[%clk 0:01:50]}  Kb8 {[%clk 0:02:09]} 20. Bf3 {[%clk 0:01:26]}  Nc8 {[%clk 0:02:05]} 21. Rhe1 {[%clk 0:01:19]}  h6 {[%clk 0:02:02]} 22. h4 {[%clk 0:01:19]}  Nd6 {[%clk 0:01:36]} 23. Nd3 {[%clk 0:00:52]}  Nc4 {[%clk 0:00:45]} 24. Bc1 {[%clk 0:00:40]}  Ba3 {[%clk 0:00:41]} 25. Nf2 {[%clk 0:00:27]}  Bxc1 {[%clk 0:00:38]} 26. Rxd7 {[%clk 0:00:24]}  Rxd7 {[%clk 0:00:29]} 27. Kxc1 {[%clk 0:00:24]}  Nd6 {[%clk 0:00:22]} 28. Rg1 {[%clk 0:00:22]}  Rd8 {[%clk 0:00:20]} 29. Kc2 {[%clk 0:00:20]}  Nb7 {[%clk 0:00:19]} 30. Nd3 {[%clk 0:00:19]}  Nd6 {[%clk 0:00:10]} 31. Re1 {[%clk 0:00:19]}  Bb7 {[%clk 0:00:09]} 32. Kd2 {[%clk 0:00:16]}  Ba6 {[%clk 0:00:08]} 33. c4 {[%clk 0:00:13]}  Nb7 {[%clk 0:00:08]} 34. Ke3 {[%clk 0:00:13]}  Nc5 {[%clk 0:00:07]} 35. Nxc5 {[%clk 0:00:12]}  bxc5 {[%clk 0:00:08]} 36. g5 {[%clk 0:00:12]}  hxg5 {[%clk 0:00:07]} 37. hxg5 {[%clk 0:00:13]}  Rd6 {[%clk 0:00:08]} 38. Rh1 {[%clk 0:00:12]}  Rb6 {[%clk 0:00:07]} 39. Bd1 {[%clk 0:00:10]}  fxg5 {[%clk 0:00:07]} 40. Rh8+ {[%clk 0:00:08]}  Kb7 {[%clk 0:00:06]} 41. Rg8 {[%clk 0:00:09]}  Rd6 {[%clk 0:00:07]} 42. Bg4 {[%clk 0:00:08]}  Rb6 {[%clk 0:00:06]} 43. Bd1 {[%clk 0:00:08]}  Rh6 {[%clk 0:00:06]} 44. Rxg7 {[%clk 0:00:08]}  Rh3+ {[%clk 0:00:06]} 45. Kf2 {[%clk 0:00:08]}  Kb6 {[%clk 0:00:02]} 46. Rxg5 {[%clk 0:00:06]}  c6 {[%clk 0:00:02]} 47. f6 {[%clk 0:00:06]} 1-0

[Event "January 9 Early 2024"]
[Site "https://www.chess.com"]
[Date "2024.01.11"]
[Round "4"]
[White "Galchenko, Matvey"]
[Black "Grischuk, Alexander"]
[Result "1-0"]
[Board "271"]
[TimeControl "180+1"]
[WhiteFideId "24175480"]
[BlackFideId "4126025"]
[WhiteElo "2910"]
[BlackElo "3060"]
[WhiteTeam "FID"]
[BlackTeam "RUS"]
[WhiteClock "0:00:07"]
[BlackClock "0:00:04"]

1. e4 {[%clk 0:03:00]}  e5 {[%clk 0:02:58]} 2. Bc4 {[%clk 0:03:01]}  Nf6 {[%clk 0:02:54]} 3. d4 {[%clk 0:03:00]}  exd4 {[%clk 0:02:45]} 4. Nf3 {[%clk 0:03:00]}  d5 {[%clk 0:02:28]} 5. exd5 {[%clk 0:02:54]}  Bb4+ {[%clk 0:02:28]} 6. c3 {[%clk 0:02:46]}  Qe7+ {[%clk 0:02:23]} 7. Be2 {[%clk 0:02:34]}  dxc3 {[%clk 0:02:23]} 8. bxc3 {[%clk 0:02:34]}  Bc5 {[%clk 0:02:16]} 9. O-O {[%clk 0:02:29]}  O-O {[%clk 0:02:14]} 10. c4 {[%clk 0:02:16]}  Bg4 {[%clk 0:02:08]} 11. Bb2 {[%clk 0:02:12]}  Re8 {[%clk 0:02:03]} 12. Bd3 {[%clk 0:02:05]}  Nbd7 {[%clk 0:02:02]} 13. Nbd2 {[%clk 0:01:57]}  Qd6 {[%clk 0:01:41]} 14. Qc2 {[%clk 0:01:53]}  Ba3 {[%clk 0:01:21]} 15. Bd4 {[%clk 0:01:35]}  Bc5 {[%clk 0:01:21]} 16. Bb2 {[%clk 0:01:20]}  Bh5 {[%clk 0:01:04]} 17. Rab1 {[%clk 0:00:47]}  b6 {[%clk 0:01:03]} 18. h3 {[%clk 0:00:36]}  Bg6 {[%clk 0:00:59]} 19. Rfe1 {[%clk 0:00:36]}  Qf4 {[%clk 0:00:47]} 20. Nb3 {[%clk 0:00:31]}  Bxd3 {[%clk 0:00:35]} 21. Qxd3 {[%clk 0:00:31]}  Ne4 {[%clk 0:00:33]} 22. Nxc5 {[%clk 0:00:27]}  Ndxc5 {[%clk 0:00:19]} 23. Qd4 {[%clk 0:00:27]}  f6 {[%clk 0:00:19]} 24. Re3 {[%clk 0:00:26]}  Qf5 {[%clk 0:00:20]} 25. Rbe1 {[%clk 0:00:26]}  Nd6 {[%clk 0:00:20]} 26. Ba3 {[%clk 0:00:25]}  Re4 {[%clk 0:00:09]} 27. Rxe4 {[%clk 0:00:20]}  Ncxe4 {[%clk 0:00:10]} 28. c5 {[%clk 0:00:20]}  bxc5 {[%clk 0:00:10]} 29. Bxc5 {[%clk 0:00:21]}  Nxc5 {[%clk 0:00:06]} 30. Qxc5 {[%clk 0:00:21]}  Qd7 {[%clk 0:00:06]} 31. Nd4 {[%clk 0:00:21]}  h6 {[%clk 0:00:03]} 32. Ne6 {[%clk 0:00:21]}  Ne8 {[%clk 0:00:04]} 33. Rb1 {[%clk 0:00:20]}  Qd6 {[%clk 0:00:01]} 34. Qxd6 {[%clk 0:00:18]}  Nxd6 {[%clk 0:00:02]} 35. Nxc7 {[%clk 0:00:18]}  Rc8 {[%clk 0:00:03]} 36. Ne6 {[%clk 0:00:17]}  a5 {[%clk 0:00:03]} 37. Rb6 {[%clk 0:00:17]}  Nf7 {[%clk 0:00:03]} 38. d6 {[%clk 0:00:09]}  Rc1+ {[%clk 0:00:03]} 39. Kh2 {[%clk 0:00:10]}  Rd1 {[%clk 0:00:03]} 40. d7 {[%clk 0:00:11]}  g5 {[%clk 0:00:01]} 41. Rb8+ {[%clk 0:00:09]}  Kh7 {[%clk 0:00:02]} 42. d8=Q {[%clk 0:00:10]}  Nxd8 {[%clk 0:00:01]} 43. Rxd8 {[%clk 0:00:11]}  Re1 {[%clk 0:00:02]} 44. Nc5 {[%clk 0:00:10]}  Re2 {[%clk 0:00:02]} 45. a4 {[%clk 0:00:10]}  Rxf2 {[%clk 0:00:02]} 46. Ra8 {[%clk 0:00:10]}  f5 {[%clk 0:00:02]} 47. Rxa5 {[%clk 0:00:10]}  f4 {[%clk 0:00:03]} 48. Ne4 {[%clk 0:00:10]}  Re2 {[%clk 0:00:03]} 49. Nc3 {[%clk 0:00:10]}  Rc2 {[%clk 0:00:03]} 50. Ne4 {[%clk 0:00:05]}  f3 {[%clk 0:00:02]} 51. Kg3 {[%clk 0:00:05]}  fxg2 {[%clk 0:00:02]} 52. Kh2 {[%clk 0:00:06]}  Kg6 {[%clk 0:00:03]} 53. Ng3 {[%clk 0:00:05]}  h5 {[%clk 0:00:02]} 54. Ra6+ {[%clk 0:00:05]}  Kf7 {[%clk 0:00:02]} 55. Ne4 {[%clk 0:00:06]}  Ra2 {[%clk 0:00:03]} 56. Nxg5+ {[%clk 0:00:06]}  Ke7 {[%clk 0:00:04]} 57. Nf3 {[%clk 0:00:07]} 1-0